[Event "Live Chess"]
[Site "Chess.com"]
[Date "2024.06.01"]
[Round "-"]
[White "Plato_77"]
[Black "lyricalschemes"]
[Result "0-1"]
[WhiteElo "1353"]
[BlackElo "2460"]
[TimeControl "300"]
[EndTime "14:49:28 PDT"]
[Termination "lyricalschemes won by resignation"]

1. d4 {[%clk 0:04:58.4]} 1... Nf6 {[%clk 0:04:59]} 2. Bf4 {[%clk 0:04:54.1]}
2... d5 {[%clk 0:04:57]} 3. Nf3 {[%clk 0:04:50.8]} 3... e6 {[%clk 0:04:51.4]} 4.
e3 {[%clk 0:04:48.8]} 4... c5 {[%clk 0:04:49.2]} 5. c3 {[%clk 0:04:46.7]} 5...
Nc6 {[%clk 0:04:48]} 6. Nbd2 {[%clk 0:04:43.5]} 6... Bd6 {[%clk 0:04:45.2]} 7.
dxc5 {[%clk 0:04:40.1]} 7... Bxc5 {[%clk 0:04:43.6]} 8. Nb3 {[%clk 0:04:37.5]}
8... Bd6 {[%clk 0:04:42.3]} 9. Bxd6 {[%clk 0:04:34.3]} 9... Qxd6 {[%clk
0:04:41]} 10. Be2 {[%clk 0:04:26.6]} 10... e5 {[%clk 0:04:30.2]} 11. O-O {[%clk
0:04:23.3]} 11... O-O {[%clk 0:04:27.3]} 12. Qc2 {[%clk 0:04:08]} 12... Bg4
{[%clk 0:04:23.3]} 13. Rad1 {[%clk 0:03:59.7]} 13... Rad8 {[%clk 0:04:20.1]} 14.
h3 {[%clk 0:03:56.8]} 14... Bh5 {[%clk 0:04:18.5]} 15. Ng5 {[%clk 0:03:23.6]}
15... Bg6 {[%clk 0:04:16.1]} 16. Qd2 {[%clk 0:03:15.2]} 16... h6 {[%clk
0:04:13.9]} 17. Nf3 {[%clk 0:03:09.8]} 17... Ne4 {[%clk 0:04:12.2]} 18. Qc1
{[%clk 0:03:03.2]} 18... Qe7 {[%clk 0:04:05.5]} 19. Nbd2 {[%clk 0:02:09.3]}
19... Nf6 {[%clk 0:04:02.1]} 20. a4 {[%clk 0:02:01.9]} 20... d4 {[%clk
0:03:54.7]} 21. exd4 {[%clk 0:01:59.7]} 21... exd4 {[%clk 0:03:53.8]} 22. cxd4
{[%clk 0:01:58.4]} 22... Qxe2 {[%clk 0:03:51.1]} 23. Rfe1 {[%clk 0:01:44.5]}
23... Qa6 {[%clk 0:03:43.9]} 24. Ne5 {[%clk 0:01:34]} 24... Nxd4 {[%clk
0:03:38.5]} 25. Nxg6 {[%clk 0:01:24.7]} 25... fxg6 {[%clk 0:03:35.4]} 26. Re7
{[%clk 0:01:02.9]} 26... Ne2+ {[%clk 0:03:33]} 0-1

[Event "Live Chess"]
[Site "Chess.com"]
[Date "2024.06.01"]
[Round "-"]
[White "e4evr"]
[Black "RichardABates"]
[Result "1/2-1/2"]
[WhiteElo "2270"]
[BlackElo "2235"]
[TimeControl "300"]
[EndTime "14:49:35 PDT"]
[Termination "Game drawn by repetition"]

1. c4 {[%clk 0:04:57.9]} 1... g6 {[%clk 0:04:58]} 2. g3 {[%clk 0:04:56.6]} 2...
Bg7 {[%clk 0:04:55.6]} 3. Bg2 {[%clk 0:04:56.3]} 3... Nf6 {[%clk 0:04:54.1]} 4.
Nc3 {[%clk 0:04:56]} 4... O-O {[%clk 0:04:52.6]} 5. e4 {[%clk 0:04:55]} 5... c5
{[%clk 0:04:51.1]} 6. Nge2 {[%clk 0:04:54.1]} 6... Nc6 {[%clk 0:04:50]} 7. O-O
{[%clk 0:04:52.7]} 7... d6 {[%clk 0:04:48.9]} 8. Rb1 {[%clk 0:04:50.6]} 8... a6
{[%clk 0:04:41.8]} 9. a3 {[%clk 0:04:43.6]} 9... Bg4 {[%clk 0:04:27.3]} 10. f3
{[%clk 0:04:39.6]} 10... Bd7 {[%clk 0:04:24.6]} 11. d3 {[%clk 0:04:26.8]} 11...
Ne8 {[%clk 0:04:09.9]} 12. Be3 {[%clk 0:04:24]} 12... Nd4 {[%clk 0:04:04]} 13.
b4 {[%clk 0:04:20.8]} 13... Nc7 {[%clk 0:04:02.7]} 14. Qd2 {[%clk 0:04:12.3]}
14... Nce6 {[%clk 0:03:58.5]} 15. Bh6 {[%clk 0:04:10.6]} 15... cxb4 {[%clk
0:03:44.2]} 16. Rxb4 {[%clk 0:04:02.8]} 16... Qa5 {[%clk 0:03:30.1]} 17. Bxg7
{[%clk 0:03:59.3]} 17... Kxg7 {[%clk 0:03:28.7]} 18. Rxb7 {[%clk 0:03:54.4]}
18... Nxe2+ {[%clk 0:03:23.9]} 19. Qxe2 {[%clk 0:03:53.3]} 19... Qxc3 {[%clk
0:03:21.8]} 20. Rxd7 {[%clk 0:03:52.2]} 20... Rfe8 {[%clk 0:03:02.7]} 21. Rb1
{[%clk 0:03:42.5]} 21... Qxa3 {[%clk 0:02:55.2]} 22. Qb2+ {[%clk 0:03:39]} 22...
Qxb2 {[%clk 0:02:53.5]} 23. Rxb2 {[%clk 0:03:38.9]} 23... a5 {[%clk 0:02:50.4]}
24. Bf1 {[%clk 0:03:31.1]} 24... a4 {[%clk 0:02:47.9]} 25. Rdb7 {[%clk
0:03:25.2]} 25... a3 {[%clk 0:02:40.2]} 26. Ra2 {[%clk 0:03:24]} 26... Nd4
{[%clk 0:02:38.5]} 27. Kf2 {[%clk 0:03:20.5]} 27... e5 {[%clk 0:02:35.8]} 28.
Be2 {[%clk 0:03:15.1]} 28... Ra5 {[%clk 0:02:26.2]} 29. Bd1 {[%clk 0:03:10]}
29... Kf6 {[%clk 0:02:17]} 30. Ke3 {[%clk 0:03:08.8]} 30... Ke6 {[%clk
0:02:15.3]} 31. Kd2 {[%clk 0:03:00.7]} 31... Re7 {[%clk 0:02:03.8]} 32. Rxe7+
{[%clk 0:02:58.6]} 32... Kxe7 {[%clk 0:02:02.4]} 33. Kc3 {[%clk 0:02:58.2]}
33... f5 {[%clk 0:01:57.2]} 34. Kb4 {[%clk 0:02:56.5]} 34... Nc6+ {[%clk
0:01:46]} 35. Kb3 {[%clk 0:02:53.3]} 35... Nd4+ {[%clk 0:01:44.7]} 36. Kb4
{[%clk 0:02:52.3]} 36... Nc6+ {[%clk 0:01:43.4]} 37. Kc3 {[%clk 0:02:51.9]}
37... Nd4 {[%clk 0:01:42]} 38. f4 {[%clk 0:02:46.1]} 38... fxe4 {[%clk
0:01:33.8]} 39. dxe4 {[%clk 0:02:44.1]} 39... Kf6 {[%clk 0:01:32.1]} 40. Kb4
{[%clk 0:02:36]} 40... Nc6+ {[%clk 0:01:30.2]} 41. Kb3 {[%clk 0:02:35.4]} 41...
Nd4+ {[%clk 0:01:28.4]} 42. Kb4 {[%clk 0:02:35.1]} 42... Nc6+ {[%clk 0:01:27]}
43. Kb3 {[%clk 0:02:34.8]} 43... Nd4+ {[%clk 0:01:25.9]} 44. Kb4 {[%clk
0:02:34.5]} 1/2-1/2

[Event "Live Chess"]
[Site "Chess.com"]
[Date "2024.06.01"]
[Round "-"]
[White "StoreySniper"]
[Black "GEMdzq"]
[Result "1-0"]
[WhiteElo "2533"]
[BlackElo "2310"]
[TimeControl "300"]
[EndTime "14:49:45 PDT"]
[Termination "StoreySniper won by resignation"]

1. c4 {[%clk 0:04:57.9]} 1... e5 {[%clk 0:04:55.5]} 2. g3 {[%clk 0:04:56.7]}
2... d5 {[%clk 0:04:50.6]} 3. cxd5 {[%clk 0:04:54.5]} 3... Qxd5 {[%clk
0:04:50.5]} 4. Nf3 {[%clk 0:04:53.7]} 4... Nc6 {[%clk 0:04:41.8]} 5. Nc3 {[%clk
0:04:51.3]} 5... Qc5 {[%clk 0:04:27.8]} 6. Bg2 {[%clk 0:04:47.1]} 6... Nf6
{[%clk 0:04:26.5]} 7. O-O {[%clk 0:04:44.6]} 7... Bf5 {[%clk 0:04:18.8]} 8. d3
{[%clk 0:04:43.4]} 8... Be7 {[%clk 0:04:03.3]} 9. Be3 {[%clk 0:04:42.4]} 9...
Qd6 {[%clk 0:04:01.9]} 10. Qb3 {[%clk 0:04:34.2]} 10... O-O {[%clk 0:03:57.4]}
11. Nh4 {[%clk 0:04:18.8]} 11... Bd7 {[%clk 0:03:53.9]} 12. Rfc1 {[%clk
0:04:07.7]} 12... Ng4 {[%clk 0:03:39.1]} 13. Nb5 {[%clk 0:03:40.8]} 13... Na5
{[%clk 0:03:16.3]} 14. Nxd6 {[%clk 0:03:34.1]} 14... Nxb3 {[%clk 0:03:15.3]} 15.
axb3 {[%clk 0:03:23.5]} 15... Nxe3 {[%clk 0:03:11.7]} 16. fxe3 {[%clk
0:03:14.9]} 16... Bxd6 {[%clk 0:03:10.6]} 17. Bxb7 {[%clk 0:03:11.5]} 17... Rab8
{[%clk 0:03:05.5]} 18. Rxa7 {[%clk 0:03:09.6]} 18... Bc8 {[%clk 0:03:03.7]} 19.
Bd5 {[%clk 0:03:00.3]} 19... g6 {[%clk 0:02:54.5]} 20. Nf3 {[%clk 0:02:55.7]}
20... h6 {[%clk 0:02:41.8]} 21. Nd2 {[%clk 0:02:48.5]} 21... Be6 {[%clk
0:02:28.2]} 22. Bxe6 {[%clk 0:02:46.1]} 22... fxe6 {[%clk 0:02:28.1]} 23. Kg2
{[%clk 0:02:08.7]} 23... Rf7 {[%clk 0:02:24.7]} 24. Rf1 {[%clk 0:01:52.8]} 24...
Rxf1 {[%clk 0:02:11.2]} 25. Kxf1 {[%clk 0:01:50]} 25... Bc5 {[%clk 0:02:10.1]}
26. Rxc7 {[%clk 0:01:46.5]} 26... Bxe3 {[%clk 0:02:09.2]} 27. Nc4 {[%clk
0:01:42]} 27... Bd4 {[%clk 0:02:07.2]} 28. e3 {[%clk 0:01:39.3]} 28... Bb6
{[%clk 0:01:52.5]} 29. Rc6 {[%clk 0:01:34.9]} 29... Bd8 {[%clk 0:01:42.9]} 30.
Rxe6 {[%clk 0:01:32.8]} 30... Kf7 {[%clk 0:01:40.1]} 31. Rxe5 {[%clk 0:01:28.6]}
31... Rxb3 {[%clk 0:01:37.3]} 32. Rd5 {[%clk 0:01:27.5]} 32... Bf6 {[%clk
0:01:33.8]} 33. d4 {[%clk 0:01:22.2]} 33... Rb4 {[%clk 0:01:30]} 34. Rc5 {[%clk
0:01:20.5]} 34... Be7 {[%clk 0:01:27.1]} 35. Rc6 {[%clk 0:01:19.1]} 35... Ke8
{[%clk 0:01:21.5]} 36. d5 {[%clk 0:01:11.4]} 36... g5 {[%clk 0:01:03.9]} 37. Ke2
{[%clk 0:01:05.6]} 37... h5 {[%clk 0:01:02.2]} 38. Kd3 {[%clk 0:01:03.3]} 38...
Kd7 {[%clk 0:00:57.8]} 39. Kc3 {[%clk 0:00:51.3]} 39... Rb8 {[%clk 0:00:48.2]}
40. e4 {[%clk 0:00:49.2]} 40... Rf8 {[%clk 0:00:47]} 41. e5 {[%clk 0:00:47.2]}
41... Rf3+ {[%clk 0:00:44.2]} 42. Kd4 {[%clk 0:00:46.2]} 42... Rf1 {[%clk
0:00:40.6]} 43. e6+ {[%clk 0:00:44]} 43... Kd8 {[%clk 0:00:38.7]} 44. d6 {[%clk
0:00:38.3]} 44... Bf6+ {[%clk 0:00:33.9]} 45. Kd3 {[%clk 0:00:29.9]} 45... Rf3+
{[%clk 0:00:32.4]} 46. Ke4 {[%clk 0:00:27.4]} 46... Rf1 {[%clk 0:00:27.8]} 47.
e7+ {[%clk 0:00:23.5]} 47... Kd7 {[%clk 0:00:22.9]} 48. Rc7+ {[%clk 0:00:21.2]}
1-0

[Event "Live Chess"]
[Site "Chess.com"]
[Date "2024.06.01"]
[Round "-"]
[White "vincents82"]
[Black "MellowAesthetic"]
[Result "0-1"]
[WhiteElo "2079"]
[BlackElo "2076"]
[TimeControl "300"]
[EndTime "14:49:48 PDT"]
[Termination "MellowAesthetic won by checkmate"]

1. e4 {[%clk 0:04:52.4]} 1... c5 {[%clk 0:04:58.7]} 2. Nf3 {[%clk 0:04:51]} 2...
d6 {[%clk 0:04:58.2]} 3. d4 {[%clk 0:04:50.3]} 3... c4 {[%clk 0:04:57.9]} 4.
Bxc4 {[%clk 0:04:48.6]} 4... Nf6 {[%clk 0:04:52.2]} 5. Nc3 {[%clk 0:04:47]} 5...
Nc6 {[%clk 0:04:46.1]} 6. O-O {[%clk 0:04:45.2]} 6... Bg4 {[%clk 0:04:37.6]} 7.
Be3 {[%clk 0:04:42.7]} 7... d5 {[%clk 0:04:34.2]} 8. exd5 {[%clk 0:04:38.3]}
8... Nb4 {[%clk 0:04:32.7]} 9. h3 {[%clk 0:04:35.4]} 9... Bf5 {[%clk 0:04:27.4]}
10. Ne5 {[%clk 0:04:28.3]} 10... a6 {[%clk 0:03:57.6]} 11. a3 {[%clk 0:04:13.4]}
11... Nbxd5 {[%clk 0:03:29.1]} 12. Nxd5 {[%clk 0:04:09.9]} 12... Nxd5 {[%clk
0:03:27.5]} 13. Bxd5 {[%clk 0:03:59.8]} 13... Qxd5 {[%clk 0:03:25.7]} 14. c4
{[%clk 0:03:58.8]} 14... Qd8 {[%clk 0:02:28.2]} 15. Qf3 {[%clk 0:03:51.6]} 15...
Qc8 {[%clk 0:02:23.4]} 16. d5 {[%clk 0:03:32.9]} 16... e6 {[%clk 0:02:11.9]} 17.
Nxf7 {[%clk 0:03:25]} 17... Kxf7 {[%clk 0:02:09.3]} 18. g4 {[%clk 0:03:23.3]}
18... Qxc4 {[%clk 0:01:00.1]} 19. gxf5 {[%clk 0:03:15.4]} 19... Qxd5 {[%clk
0:00:58.7]} 20. fxe6+ {[%clk 0:03:12.7]} 20... Kxe6 {[%clk 0:00:58.6]} 21. Qg4+
{[%clk 0:03:07]} 21... Qf5 {[%clk 0:00:57.7]} 22. Qc4+ {[%clk 0:02:54.8]} 22...
Qd5 {[%clk 0:00:56.9]} 23. Qe2 {[%clk 0:02:52.3]} 23... Kf7 {[%clk 0:00:55.5]}
24. Rfd1 {[%clk 0:02:46.4]} 24... Qe6 {[%clk 0:00:51.2]} 25. Qf3+ {[%clk
0:02:44.3]} 25... Kg8 {[%clk 0:00:49.9]} 26. Qxb7 {[%clk 0:02:30.5]} 26... Re8
{[%clk 0:00:49.1]} 27. Rac1 {[%clk 0:02:19.4]} 27... h5 {[%clk 0:00:37.6]} 28.
Qg2 {[%clk 0:02:07.3]} 28... h4 {[%clk 0:00:35]} 29. Rc6 {[%clk 0:02:02.2]}
29... Qb3 {[%clk 0:00:31.4]} 30. Bd4 {[%clk 0:01:56.4]} 30... Qxd1+ {[%clk
0:00:29.7]} 31. Kh2 {[%clk 0:01:52.1]} 31... Qxd4 {[%clk 0:00:29.2]} 32. Rg6
{[%clk 0:01:46.7]} 32... Bd6+ {[%clk 0:00:26.3]} 33. Kh1 {[%clk 0:01:42.8]}
33... Re1+ {[%clk 0:00:24.3]} 34. Qg1 {[%clk 0:01:41.1]} 34... Qe4+ {[%clk
0:00:19.3]} 35. Rg2 {[%clk 0:01:39.9]} 35... Rxg1+ {[%clk 0:00:17.5]} 36. Kxg1
{[%clk 0:01:39.2]} 36... Qe1# {[%clk 0:00:16.8]} 0-1

[Event "Live Chess"]
[Site "Chess.com"]
[Date "2024.06.01"]
[Round "-"]
[White "crais6"]
[Black "dmitro74"]
[Result "0-1"]
[WhiteElo "1616"]
[BlackElo "1747"]
[TimeControl "300"]
[EndTime "14:50:05 PDT"]
[Termination "dmitro74 won by resignation"]

1. d4 {[%clk 0:04:55.1]} 1... d5 {[%clk 0:04:58.4]} 2. Nf3 {[%clk 0:04:51.9]}
2... Nf6 {[%clk 0:04:56.7]} 3. e3 {[%clk 0:04:49.6]} 3... e6 {[%clk 0:04:54.3]}
4. Bd3 {[%clk 0:04:48.3]} 4... c5 {[%clk 0:04:51.8]} 5. b3 {[%clk 0:04:45.5]}
5... a6 {[%clk 0:04:49.6]} 6. Bb2 {[%clk 0:04:43.8]} 6... b5 {[%clk 0:04:46.5]}
7. c4 {[%clk 0:04:27.1]} 7... dxc4 {[%clk 0:04:40.7]} 8. bxc4 {[%clk 0:04:24.8]}
8... bxc4 {[%clk 0:04:38.1]} 9. Bxc4 {[%clk 0:04:22.8]} 9... cxd4 {[%clk
0:04:36]} 10. Bxd4 {[%clk 0:04:18.5]} 10... Bb4+ {[%clk 0:04:33.9]} 11. Nbd2
{[%clk 0:04:15.7]} 11... O-O {[%clk 0:04:26.1]} 12. O-O {[%clk 0:04:13.9]} 12...
Bb7 {[%clk 0:04:22.9]} 13. Rb1 {[%clk 0:04:00.4]} 13... Qe7 {[%clk 0:04:14.3]}
14. Bxf6 {[%clk 0:03:50]} 14... gxf6 {[%clk 0:04:13]} 15. Qb3 {[%clk 0:03:41.8]}
15... Nc6 {[%clk 0:03:57.6]} 16. a3 {[%clk 0:03:32.1]} 16... Bxd2 {[%clk
0:03:55.4]} 17. Nxd2 {[%clk 0:03:29.5]} 17... Rab8 {[%clk 0:03:52.6]} 18. Qa2
{[%clk 0:03:24.2]} 18... Ne5 {[%clk 0:03:41.3]} 19. Be2 {[%clk 0:03:14.1]} 19...
Bd5 {[%clk 0:03:37.1]} 20. Qc2 {[%clk 0:03:09.6]} 20... Rbc8 {[%clk 0:03:27.3]}
21. Qb2 {[%clk 0:03:04.6]} 21... Kh8 {[%clk 0:03:23.8]} 22. Qd4 {[%clk
0:03:00.1]} 22... Rg8 {[%clk 0:03:21.1]} 23. e4 {[%clk 0:02:56.4]} 23... Ba8
{[%clk 0:03:13.3]} 24. f4 {[%clk 0:02:53]} 24... Ng4 {[%clk 0:02:52.6]} 25. Nf3
{[%clk 0:02:20.2]} 25... Rgd8 {[%clk 0:02:48.4]} 26. Qb6 {[%clk 0:02:08.7]}
26... Bxe4 {[%clk 0:02:40.9]} 27. Rb4 {[%clk 0:01:50.3]} 27... f5 {[%clk
0:02:33.8]} 28. h3 {[%clk 0:01:40.9]} 28... Nf6 {[%clk 0:02:25.3]} 29. Ne5
{[%clk 0:01:24.8]} 29... Nd5 {[%clk 0:02:19]} 30. Qd4 {[%clk 0:01:18.8]} 30...
f6 {[%clk 0:02:17.6]} 31. Ng4 {[%clk 0:00:42.3]} 31... Nxb4 {[%clk 0:02:06.3]}
32. Qxf6+ {[%clk 0:00:33.7]} 32... Qxf6 {[%clk 0:02:04.7]} 33. Nxf6 {[%clk
0:00:32.5]} 33... Nc2 {[%clk 0:01:57.8]} 34. Bxa6 {[%clk 0:00:27]} 34... Ra8
{[%clk 0:01:50.2]} 0-1

[Event "Live Chess"]
[Site "Chess.com"]
[Date "2024.06.01"]
[Round "-"]
[White "Queensandpawns"]
[Black "gmnorfolk"]
[Result "1-0"]
[WhiteElo "2381"]
[BlackElo "2104"]
[TimeControl "300"]
[EndTime "14:50:12 PDT"]
[Termination "Queensandpawns won by resignation"]

1. e4 {[%clk 0:04:56]} 1... c5 {[%clk 0:04:57.8]} 2. d4 {[%clk 0:04:53.1]} 2...
cxd4 {[%clk 0:04:56.5]} 3. c3 {[%clk 0:04:53]} 3... dxc3 {[%clk 0:04:55.7]} 4.
Bc4 {[%clk 0:04:52.3]} 4... Nc6 {[%clk 0:04:54.3]} 5. Nf3 {[%clk 0:04:51.2]}
5... e6 {[%clk 0:04:53.2]} 6. O-O {[%clk 0:04:50.4]} 6... a6 {[%clk 0:04:42.9]}
7. Nxc3 {[%clk 0:04:48.4]} 7... b5 {[%clk 0:04:41.5]} 8. Bb3 {[%clk 0:04:47.6]}
8... d6 {[%clk 0:04:37.9]} 9. Re1 {[%clk 0:04:47]} 9... Nf6 {[%clk 0:04:35.6]}
10. Bg5 {[%clk 0:04:44.7]} 10... Be7 {[%clk 0:04:34.6]} 11. Nd5 {[%clk
0:04:41.8]} 11... exd5 {[%clk 0:04:27.1]} 12. exd5 {[%clk 0:04:41.7]} 12... Nb8
{[%clk 0:04:09.8]} 13. Qe2 {[%clk 0:04:36.8]} 13... Ra7 {[%clk 0:03:57.9]} 14.
Rac1 {[%clk 0:04:35]} 14... O-O {[%clk 0:03:49.1]} 15. Qe3 {[%clk 0:04:30.1]}
15... Bg4 {[%clk 0:03:38.9]} 16. Qxa7 {[%clk 0:04:26.8]} 16... Bxf3 {[%clk
0:03:37.8]} 17. Qxe7 {[%clk 0:04:24.6]} 17... Qxe7 {[%clk 0:02:52.1]} 18. Rxe7
{[%clk 0:04:24.5]} 18... Nbd7 {[%clk 0:02:51.4]} 19. gxf3 {[%clk 0:04:22.5]} 1-0

[Event "Live Chess"]
[Site "Chess.com"]
[Date "2024.06.01"]
[Round "-"]
[White "agamilewska"]
[Black "KeithArkell"]
[Result "0-1"]
[WhiteElo "1772"]
[BlackElo "2416"]
[TimeControl "300"]
[EndTime "14:50:19 PDT"]
[Termination "KeithArkell won by resignation"]

1. d4 {[%clk 0:04:58.2]} 1... e6 {[%clk 0:04:59]} 2. c4 {[%clk 0:04:57]} 2...
Bb4+ {[%clk 0:04:57.6]} 3. Nc3 {[%clk 0:04:55.7]} 3... c5 {[%clk 0:04:56.3]} 4.
e3 {[%clk 0:04:53.6]} 4... Bxc3+ {[%clk 0:04:55.5]} 5. bxc3 {[%clk 0:04:52.5]}
5... f5 {[%clk 0:04:55.4]} 6. Nf3 {[%clk 0:04:51.1]} 6... Nf6 {[%clk 0:04:55]}
7. Be2 {[%clk 0:04:50.2]} 7... d6 {[%clk 0:04:54.6]} 8. O-O {[%clk 0:04:48.8]}
8... Nc6 {[%clk 0:04:54.2]} 9. Ba3 {[%clk 0:04:46.8]} 9... b6 {[%clk 0:04:52.8]}
10. Rb1 {[%clk 0:04:44.2]} 10... e5 {[%clk 0:04:51.9]} 11. dxe5 {[%clk
0:04:31.7]} 11... dxe5 {[%clk 0:04:50]} 12. Qxd8+ {[%clk 0:04:30.1]} 12... Kxd8
{[%clk 0:04:49.7]} 13. Rfe1 {[%clk 0:04:29]} 13... Ke7 {[%clk 0:04:48.6]} 14.
Rbd1 {[%clk 0:04:27.1]} 14... Be6 {[%clk 0:04:47.7]} 15. Ng5 {[%clk 0:04:19.8]}
15... Ne4 {[%clk 0:04:45.2]} 16. Nxe4 {[%clk 0:04:09.9]} 16... fxe4 {[%clk
0:04:45.1]} 17. f3 {[%clk 0:04:04.3]} 17... Na5 {[%clk 0:04:43.1]} 18. fxe4
{[%clk 0:03:59.1]} 18... Bxc4 {[%clk 0:04:42.1]} 19. Bxc4 {[%clk 0:03:55.8]}
19... Nxc4 {[%clk 0:04:40.9]} 20. Bc1 {[%clk 0:03:53.8]} 20... Rad8 {[%clk
0:04:40]} 21. Rd5 {[%clk 0:03:51.7]} 21... Rxd5 {[%clk 0:04:30.7]} 22. exd5
{[%clk 0:03:50.5]} 22... e4 {[%clk 0:04:30.2]} 23. Rf1 {[%clk 0:03:42.7]} 23...
Rf8 {[%clk 0:04:28.3]} 24. Rxf8 {[%clk 0:03:35.5]} 24... Kxf8 {[%clk 0:04:27.7]}
25. Kf2 {[%clk 0:03:34.3]} 25... Ke7 {[%clk 0:04:26.1]} 26. Kg3 {[%clk
0:03:33.3]} 26... g5 {[%clk 0:04:24.7]} 27. Kg4 {[%clk 0:03:32]} 27... Kf6
{[%clk 0:04:23.4]} 28. g3 {[%clk 0:03:20.6]} 28... Kg6 {[%clk 0:04:22.5]} 29. h4
{[%clk 0:03:19.6]} 29... h5+ {[%clk 0:04:21.6]} 30. Kh3 {[%clk 0:03:15.9]} 30...
g4+ {[%clk 0:04:21]} 31. Kg2 {[%clk 0:03:14.4]} 31... Kf5 {[%clk 0:04:20.8]} 32.
Kf2 {[%clk 0:03:11.9]} 32... Ke5 {[%clk 0:04:20.2]} 33. Ke2 {[%clk 0:03:09.1]}
33... Kxd5 {[%clk 0:04:19.6]} 34. Kd1 {[%clk 0:03:06]} 34... Ne5 {[%clk
0:04:18.1]} 35. Kc2 {[%clk 0:02:59.6]} 35... Kc4 {[%clk 0:04:17.2]} 36. a4
{[%clk 0:02:51.4]} 36... Nd3 {[%clk 0:04:14.4]} 37. Ba3 {[%clk 0:02:47.3]} 37...
Nf2 {[%clk 0:04:11.1]} 0-1

[Event "Live Chess"]
[Site "Chess.com"]
[Date "2024.06.01"]
[Round "-"]
[White "asingardenof"]
[Black "GrahamCuthbert"]
[Result "0-1"]
[WhiteElo "616"]
[BlackElo "1026"]
[TimeControl "300"]
[EndTime "14:50:28 PDT"]
[Termination "GrahamCuthbert won by checkmate"]

1. d4 {[%clk 0:04:57.1]} 1... d5 {[%clk 0:04:58.1]} 2. c4 {[%clk 0:04:55.9]}
2... Nf6 {[%clk 0:04:56.9]} 3. Nc3 {[%clk 0:04:53.4]} 3... Nc6 {[%clk 0:04:50]}
4. Nf3 {[%clk 0:04:51.8]} 4... Bg4 {[%clk 0:04:47]} 5. e3 {[%clk 0:04:47.1]}
5... e6 {[%clk 0:04:44.1]} 6. Be2 {[%clk 0:04:44.8]} 6... Be7 {[%clk 0:04:37.8]}
7. b3 {[%clk 0:04:42.9]} 7... Bb4 {[%clk 0:04:30.8]} 8. Bd2 {[%clk 0:04:40.8]}
8... O-O {[%clk 0:04:23.5]} 9. O-O {[%clk 0:04:39.6]} 9... Ne4 {[%clk
0:04:15.3]} 10. Nxe4 {[%clk 0:04:32.7]} 10... dxe4 {[%clk 0:04:07.6]} 11. Nh4
{[%clk 0:04:27.2]} 11... Bxe2 {[%clk 0:03:59.9]} 12. Qxe2 {[%clk 0:04:27.1]}
12... Qxh4 {[%clk 0:03:57]} 13. Bxb4 {[%clk 0:04:18.4]} 13... Nxb4 {[%clk
0:03:55.2]} 14. a3 {[%clk 0:04:18.3]} 14... Nd3 {[%clk 0:03:47]} 15. g3 {[%clk
0:04:09.1]} 15... Qg5 {[%clk 0:03:27.5]} 16. f3 {[%clk 0:04:03.5]} 16... f5
{[%clk 0:03:13.6]} 17. fxe4 {[%clk 0:03:55.3]} 17... fxe4 {[%clk 0:03:09.1]} 18.
Rxf8+ {[%clk 0:03:48.6]} 18... Rxf8 {[%clk 0:03:07.8]} 19. Rf1 {[%clk
0:03:44.6]} 19... Rxf1+ {[%clk 0:02:57.2]} 20. Qxf1 {[%clk 0:03:44.5]} 20...
Qxe3+ {[%clk 0:02:42.1]} 21. Kh1 {[%clk 0:03:40.2]} 21... Qf3+ {[%clk
0:02:33.5]} 22. Qxf3 {[%clk 0:03:32.5]} 22... exf3 {[%clk 0:02:32.3]} 23. Kg1
{[%clk 0:03:32.2]} 23... f2+ {[%clk 0:02:30.3]} 24. Kf1 {[%clk 0:03:30.9]} 24...
Kf7 {[%clk 0:02:27.6]} 25. c5 {[%clk 0:03:23.7]} 25... Kf6 {[%clk 0:02:21.4]}
26. b4 {[%clk 0:03:20]} 26... e5 {[%clk 0:02:20.1]} 27. d5 {[%clk 0:03:17.5]}
27... e4 {[%clk 0:02:17.7]} 28. d6 {[%clk 0:03:16]} 28... cxd6 {[%clk
0:02:16.6]} 29. cxd6 {[%clk 0:03:15.8]} 29... Ke6 {[%clk 0:02:14.9]} 30. d7
{[%clk 0:03:15.7]} 30... Kxd7 {[%clk 0:02:14.1]} 31. g4 {[%clk 0:03:11.6]} 31...
g6 {[%clk 0:02:11.7]} 32. h4 {[%clk 0:03:11.5]} 32... h5 {[%clk 0:02:08.6]} 33.
gxh5 {[%clk 0:03:10.3]} 33... gxh5 {[%clk 0:02:07.5]} 34. a4 {[%clk 0:03:07.5]}
34... e3 {[%clk 0:02:05.6]} 35. b5 {[%clk 0:03:04.4]} 35... e2+ {[%clk 0:02:04]}
36. Kxe2 {[%clk 0:03:03.1]} 36... Nc5 {[%clk 0:01:48]} 37. a5 {[%clk 0:02:59.4]}
37... a6 {[%clk 0:01:42.5]} 38. b6 {[%clk 0:02:56.8]} 38... Nb3 {[%clk
0:01:40.5]} 39. Kxf2 {[%clk 0:02:54.6]} 39... Nxa5 {[%clk 0:01:39.6]} 40. Kf3
{[%clk 0:02:54.5]} 40... Kc6 {[%clk 0:01:37.2]} 41. Kf4 {[%clk 0:02:54.4]} 41...
Nc4 {[%clk 0:01:35.8]} 42. Kg5 {[%clk 0:02:54.3]} 42... Ne5 {[%clk 0:01:32.4]}
43. Kxh5 {[%clk 0:02:54.2]} 43... Nf7 {[%clk 0:01:20.3]} 44. Kg6 {[%clk
0:02:48.9]} 44... Ne5+ {[%clk 0:01:18]} 45. Kg5 {[%clk 0:02:46.3]} 45... Kd7
{[%clk 0:01:04.3]} 46. h5 {[%clk 0:02:46.2]} 46... Nf7+ {[%clk 0:01:00]} 47. Kf6
{[%clk 0:02:45.8]} 47... Ke8 {[%clk 0:00:58.9]} 48. Kg6 {[%clk 0:02:42.7]} 48...
a5 {[%clk 0:00:56.4]} 49. h6 {[%clk 0:02:40.4]} 49... Nxh6 {[%clk 0:00:55.1]}
50. Kxh6 {[%clk 0:02:39.5]} 50... a4 {[%clk 0:00:54.3]} 51. Kg6 {[%clk
0:02:38.1]} 51... a3 {[%clk 0:00:54.1]} 52. Kf6 {[%clk 0:02:38]} 52... a2 {[%clk
0:00:54]} 53. Ke6 {[%clk 0:02:37.9]} 53... a1=Q {[%clk 0:00:53.9]} 54. Kd6
{[%clk 0:02:37.8]} 54... Qa6 {[%clk 0:00:52.9]} 55. Kc7 {[%clk 0:02:36.8]} 55...
Ke7 {[%clk 0:00:47]} 56. Kc8 {[%clk 0:02:31.9]} 56... Qxb6 {[%clk 0:00:42.4]}
57. Kb8 {[%clk 0:02:27.1]} 57... Qe3 {[%clk 0:00:37.7]} 58. Kxb7 {[%clk
0:02:19.2]} 58... Qc5 {[%clk 0:00:36]} 59. Kb8 {[%clk 0:02:16]} 59... Qc6 {[%clk
0:00:35]} 60. Ka7 {[%clk 0:02:14.9]} 60... Kd6 {[%clk 0:00:33.3]} 61. Kb8 {[%clk
0:02:13.5]} 61... Qd7 {[%clk 0:00:32.4]} 62. Ka8 {[%clk 0:02:11.8]} 62... Kc6
{[%clk 0:00:31.7]} 63. Kb8 {[%clk 0:02:10.8]} 63... Qb7# {[%clk 0:00:31.2]} 0-1